bitfinex/quotes_BTCUSD_20250624
["timestamp","ask_amount","ask_price","bid_price","bid_amount"]
[1750733366975,0.48832793,105110.0,105100.0,0.24072407]
[1750733367529,0.48932793,105110.0,105100.0,0.24472416]
[1750733367738,0.47478708,105110.0,105100.0,0.24472416]
[1750733367975,0.47478708,105110.0,105100.0,0.25423854]
[1750733368212,0.47478708,105110.0,105100.0,0.25423863]
[1750733368418,0.47478708,105110.0,105100.0,0.26375301]
[1750733368834,0.47478708,105110.0,105100.0,0.0354]
[1750733369242,0.47486708,105110.0,105100.0,0.0354]
[1750733369475,1.1899584,105110.0,105100.0,0.0042]
[1750733370121,1.28546026,105110.0,105100.0,0.0042]
[1750733370778,1.30126026,105110.0,105100.0,0.0042]
[1750733371441,1.28546026,105110.0,105100.0,0.0042]
[1750733373098,1.30046026,105110.0,105100.0,0.0042]
[1750733373344,1.31530026,105110.0,105100.0,0.0042]
[1750733374366,1.34391026,105110.0,105100.0,0.0042]
[1750733374611,1.31530026,105110.0,105100.0,0.0042]
[1750733375020,1.34391026,105110.0,105100.0,0.0042]
[1750733375359,1.26824941,105110.0,105100.0,0.0042]
[1750733375796,1.23963941,105110.0,105100.0,0.0042]
[1750733376003,1.26824941,105110.0,105100.0,0.0042]
[1750733376427,1.23963941,105110.0,105100.0,0.0042]
[1750733376640,1.26824941,105110.0,105100.0,0.0042]
[1750733378718,1.23963941,105110.0,105100.0,0.0042]
[1750733378908,1.26824941,105110.0,105100.0,0.0042]
[1750733380308,1.23963941,105110.0,105100.0,0.0042]
[1750733380980,1.26824941,105110.0,105100.0,0.0042]
[1750733381522,1.23963941,105110.0,105100.0,0.0042]
[1750733381734,1.26824941,105110.0,105100.0,0.0042]
[1750733384167,1.25204941,105110.0,105100.0,0.0042]
[1750733389654,1.31010947,105110.0,105100.0,0.0042]
[1750733389868,1.31010929,105110.0,105100.0,0.3042]
[1750733390076,1.30059618,105110.0,105100.0,0.3042]
[1750733390284,1.31827844,105110.0,105100.0,0.3042]
[1750733390503,1.31827884,105110.0,105100.0,0.3042]
[1750733390711,1.32490989,105110.0,105100.0,0.3042]
[1750733390934,1.31827884,105110.0,105100.0,0.3042]
[1750733391149,1.31010938,105110.0,105100.0,0.3042]
[1750733391722,1.33441899,105110.0,105100.0,0.3042]
[1750733391930,1.34393247,105110.0,105100.0,0.3042]
[1750733392312,1.35344595,105110.0,105100.0,0.3042]
[1750733392524,1.34393238,105110.0,105100.0,0.3042]
[1750733393402,1.35344595,105110.0,105100.0,0.3042]
[1750733393618,1.34393238,105110.0,105100.0,0.3042]
[1750733393828,1.35344586,105110.0,105100.0,0.3042]
[1750733394462,1.34393238,105110.0,105100.0,0.3042]
[1750733395094,1.3439287,105110.0,105100.0,0.3042]
[1750733396141,1.33441531,105110.0,105100.0,0.3042]
[1750733396494,1.32490211,105110.0,105100.0,0.3042]
[1750733397132,1.33441531,105110.0,105100.0,0.3042]
[1750733397357,1.33441613,105110.0,105100.0,0.3042]
[1750733397653,1.32490293,105110.0,105100.0,0.3042]
[1750733397914,1.32312326,105110.0,105100.0,0.3042]
[1750733398141,1.31361024,105110.0,105100.0,0.3042]
[1750733398350,1.31355908,105110.0,105100.0,0.3042]
[1750733398596,1.31355908,105110.0,105100.0,0.3353]
[1750733398597,1.01267315,105110.0,105100.0,0.3353]
[1750733398807,0.91641233,105110.0,105100.0,0.3353]
[1750733399010,0.89377858,105110.0,105100.0,0.3353]
[1750733399225,1.20532858,105110.0,105100.0,0.3353]
[1750733401606,1.20520858,105110.0,105100.0,0.3353]
[1750733402008,1.20516858,105110.0,105100.0,0.3353]
[1750733402415,0.92027896,105110.0,105100.0,0.3353]
[1750733402592,1.20528858,105110.0,105100.0,0.3353]
[1750733405229,1.00400858,105110.0,105100.0,0.3353]
[1750733405433,1.20516858,105110.0,105100.0,0.3353]
[1750733409022,1.20516858,105110.0,105100.0,0.3042]
[1750733410583,1.22076858,105110.0,105100.0,0.3042]
[1750733410994,1.23676858,105110.0,105100.0,0.3042]
[1750733411288,1.20516858,105110.0,105100.0,0.3042]
[1750733412726,1.22176858,105110.0,105100.0,0.3042]
[1750733412838,1.23686858,105110.0,105100.0,0.3042]
[1750733416640,1.25589489,105110.0,105100.0,0.3042]
[1750733416983,1.31238861,105110.0,105100.0,0.3042]
[1750733417187,1.32190218,105110.0,105100.0,0.3042]
[1750733417609,1.31238861,105110.0,105100.0,0.3042]
[1750733417817,1.29236193,105110.0,105100.0,0.3002]
[1750733418031,1.30187513,105110.0,105100.0,0.3002]
[1750733418257,1.31238842,105110.0,105100.0,0.3002]
[1750733418456,1.3219019,105110.0,105100.0,0.3002]
[1750733418664,1.3249019,105110.0,105100.0,0.3002]
[1750733418877,1.32490349,105110.0,105100.0,0.3002]
[1750733419295,1.32491068,105110.0,105100.0,0.3002]
[1750733419700,1.32491122,105110.0,105100.0,0.3002]
[1750733420548,1.31539774,105110.0,105100.0,0.3002]
[1750733421333,1.32491131,105110.0,105100.0,0.3002]
[1750733421524,1.31539774,105110.0,105100.0,0.3002]
[1750733421725,1.32491122,105110.0,105100.0,0.3002]
[1750733421924,1.31539774,105110.0,105100.0,0.3002]
[1750733422193,1.30875962,105110.0,105100.0,0.3002]
[1750733422334,1.3249139,105110.0,105100.0,0.3002]
[1750733422724,1.31540051,105110.0,105100.0,0.3002]
[1750733423132,1.30588713,105110.0,105100.0,0.3002]
[1750733423269,1.31540052,105110.0,105100.0,0.3002]
[1750733424094,1.34401352,105110.0,105100.0,0.3002]
[1750733424294,1.353527,105110.0,105100.0,0.3002]
[1750733425136,1.35354461,105110.0,105100.0,0.3002]
[1750733425294,1.36305818,105110.0,105100.0,0.3002]
[1750733426087,1.35354461,105110.0,105100.0,0.3002]
[1750733426549,1.34403113,105110.0,105100.0,0.3002]
[1750733427320,1.3535447,105110.0,105100.0,0.3002]
[1750733427560,1.34403113,105110.0,105100.0,0.3002]
[1750733428127,1.34404626,105110.0,105100.0,0.3002]
[1750733429876,1.34324626,105110.0,105100.0,0.3002]
[1750733430082,1.35275992,105110.0,105100.0,0.3002]
[1750733430532,1.35275983,105110.0,105100.0,0.3002]
[1750733430739,1.34324626,105110.0,105100.0,0.3002]
[1750733430948,1.34611242,105110.0,105100.0,0.3002]
[1750733431151,1.35275774,105110.0,105100.0,0.3002]
[1750733431334,1.34324417,105110.0,105100.0,0.3002]
[1750733431602,1.35275774,105110.0,105100.0,0.3002]
[1750733431805,1.34324417,105110.0,105100.0,0.3002]
[1750733433922,1.34324279,105110.0,105100.0,0.3002]
[1750733434624,1.35275627,105110.0,105100.0,0.3002]
[1750733436260,1.32814269,105110.0,105100.0,0.3002]
[1750733436496,1.31154269,105110.0,105100.0,0.3002]
[1750733436831,1.34164269,105110.0,105100.0,0.3002]
[1750733437510,1.35115617,105110.0,105100.0,0.3002]
[1750733437931,1.34164269,105110.0,105100.0,0.3002]
[1750733438138,1.35115626,105110.0,105100.0,0.3002]
[1750733438408,1.35115617,105110.0,105100.0,0.3002]
[1750733439041,1.36002225,105110.0,105100.0,0.3002]
[1750733439945,1.36002881,105110.0,105100.0,0.29772]
[1750733440653,1.35051533,105110.0,105100.0,0.29772]
[1750733441183,1.36002881,105110.0,105100.0,0.29772]
[1750733441595,1.38831287,105110.0,105100.0,0.29772]
[1750733441795,1.39750653,105110.0,105100.0,0.29772]
[1750733442783,1.39752661,105110.0,105100.0,0.29772]
[1750733443307,1.38801359,105110.0,105100.0,0.29772]
[1750733444391,1.37849993,105110.0,105100.0,0.29772]
[1750733444664,1.48348354,105110.0,105100.0,0.29772]
[1750733444894,1.39752734,105110.0,105100.0,0.29772]
[1750733445783,1.39754503,105110.0,105100.0,0.29772]
[1750733446071,1.38803128,105110.0,105100.0,0.29772]
[1750733447242,1.39754512,105110.0,105100.0,0.29772]
[1750733447539,1.38803128,105110.0,105100.0,0.29772]
[1750733447898,1.38803554,105110.0,105100.0,0.29772]
[1750733448454,1.63728666,105110.0,105100.0,0.29772]
[1750733448763,1.64679875,105110.0,105100.0,0.29772]
[1750733449258,1.95123123,105110.0,105100.0,0.29772]
[1750733449472,1.85576128,105110.0,105100.0,0.29772]
[1750733450287,1.32162054,105110.0,105100.0,0.29772]
[1750733450526,1.60650253,105110.0,105100.0,0.29772]
[1750733451371,1.60650199,105110.0,105100.0,0.29772]
[1750733451596,1.74245602,105110.0,105100.0,0.24055908]
[1750733451806,2.07733801,105110.0,105100.0,0.24055908]
[1750733452223,2.04905395,105110.0,105100.0,0.24055908]
[1750733452666,2.07744828,105110.0,105100.0,0.19395908]
[1750733453340,5.97189705,105110.0,105100.0,0.19395908]
[1750733453525,1.656289,105110.0,105100.0,0.19395908]
[1750733453803,1.56857692,105110.0,105100.0,0.19395908]
[1750733454048,1.8939458,105110.0,105100.0,0.09953673]
[1750733454270,6.64955042,105110.0,105100.0,0.09953673]
[1750733454487,6.64954616,105110.0,105100.0,0.09953673]
[1750733455149,6.74501611,105110.0,105100.0,0.09953673]
[1750733455364,6.74501611,105110.0,105100.0,0.05189878]
[1750733457331,6.74500781,105110.0,105100.0,0.05189878]
[1750733458872,6.7361414,105110.0,105100.0,0.05189878]
[1750733459097,6.74500956,105110.0,105100.0,0.05189878]
[1750733460188,6.74498926,105110.0,105100.0,0.05189878]
[1750733462071,6.76401646,105110.0,105100.0,0.05189878]
[1750733462711,6.75736662,105110.0,105100.0,0.05189878]
[1750733462939,6.76401783,105110.0,105100.0,0.05189878]
[1750733463592,6.56429783,105110.0,105100.0,0.05189878]
[1750733463805,6.37402098,105110.0,105100.0,0.05189878]
[1750733464025,6.58135315,105110.0,105100.0,0.05189878]
[1750733464923,6.54364107,105110.0,105100.0,0.05189878]
[1750733465366,6.58135315,105110.0,105100.0,0.05189878]
[1750733465618,6.55632158,105110.0,105100.0,0.05189878]
[1750733465862,6.57184712,105110.0,105100.0,0.05189878]
[1750733466939,6.57184816,105110.0,105100.0,0.05189878]
[1750733467588,6.76212501,105110.0,105100.0,0.05189878]
[1750733468500,6.7443876,105110.0,105100.0,0.05189878]
[1750733468726,6.76212714,105110.0,105100.0,0.05189878]
[1750733469158,6.79472807,105110.0,105100.0,0.05189878]
[1750733469384,6.78521468,105110.0,105100.0,0.05189878]
[1750733470097,6.76901468,105110.0,105100.0,0.05189878]
[1750733470971,6.76902129,105110.0,105100.0,0.05189878]
[1750733471405,6.78412129,105110.0,105100.0,0.05189878]
[1750733471653,6.78412978,105110.0,105100.0,0.05189878]
[1750733472313,7.03342165,105110.0,105100.0,0.05189878]
[1750733472526,7.01832165,105110.0,105100.0,0.05189878]
[1750733472788,6.96832136,105110.0,105100.0,0.05189878]
[1750733473008,7.01832136,105110.0,105100.0,0.05189878]
[1750733473481,7.03482136,105110.0,105100.0,0.05189878]
[1750733473721,7.03482136,105110.0,105100.0,0.00426159]
[1750733473722,7.2640003,105110.0,105100.0,0.00426159]
[1750733473947,7.29239796,105110.0,105100.0,0.00426159]
[1750733474640,7.21400042,105110.0,105100.0,0.00426159]
[1750733474898,7.26400042,105110.0,105100.0,0.00426159]
[1750733475544,7.26400163,105110.0,105100.0,0.00426159]
[1750733477544,6.99691693,105110.0,105100.0,0.00426159]
[1750733477775,7.26400386,105110.0,105100.0,0.00426159]
[1750733478209,7.29242265,105110.0,105100.0,0.00426159]
[1750733478636,7.29242718,105110.0,105100.0,0.00426159]
[1750733478849,7.29242717,105110.0,105100.0,0.00426159]
[1750733479101,7.29242717,105110.0,105100.0,0.03576159]
[1750733479102,6.80602698,105110.0,105100.0,0.03576159]
[1750733479359,1.88498468,105110.0,105100.0,0.03576159]
[1750733479577,1.88498468,105110.0,105100.0,0.00426159]
[1750733480074,1.91608468,105110.0,105100.0,0.00426159]
[1750733480302,6.96608468,105110.0,105100.0,0.00426159]
[1750733480509,6.96608743,105110.0,105100.0,0.00426159]
[1750733481240,7.06155738,105110.0,105100.0,0.00426159]
[1750733481463,7.06156282,105110.0,105100.0,0.00426159]
[1750733481677,7.00204971,105110.0,105100.0,0.00426159]
[1750733481899,7.05204971,105110.0,105100.0,0.00426159]
[1750733482803,7.04253632,105110.0,105100.0,0.00426159]
[1750733482982,7.28120951,105110.0,105100.0,0.00426159]
[1750733483226,7.26344574,105110.0,105100.0,0.00426159]
[1750733483454,7.28120883,105110.0,105100.0,0.00426159]
[1750733483908,7.3378918,105110.0,105100.0,0.00426159]
[1750733485852,7.07080487,105110.0,105100.0,0.00426159]
[1750733486302,7.07081033,105110.0,105100.0,0.00426159]
[1750733486953,7.33789726,105110.0,105100.0,0.00426159]
[1750733487382,7.06129676,105110.0,105100.0,0.00426159]
[1750733487855,7.32838575,105110.0,105100.0,0.00426159]
[1750733488958,7.31284283,105110.0,105100.0,0.00426159]
[1750733489169,7.32839072,105110.0,105100.0,0.00426159]
[1750733489369,7.32859072,105110.0,105100.0,0.00426159]
[1750733490712,7.32859709,105110.0,105100.0,0.00426159]
[1750733492036,7.32859733,105110.0,105100.0,0.00426159]
[1750733493566,7.31971282,105110.0,105100.0,0.00426159]
[1750733493782,7.3785976,105110.0,105100.0,0.00426159]
[1750733494785,0.55435054,105100.0,105090.0,0.0002]
[1750733494986,1.6934733,105100.0,105090.0,0.0002]
[1750733495251,1.77376456,105100.0,105090.0,0.0002]
[1750733495455,6.9720035,105100.0,105090.0,0.0002]
[1750733495791,7.02868647,105100.0,105090.0,0.0002]
[1750733495993,7.05099863,105100.0,105090.0,0.0002]
[1750733496198,7.02293466,105100.0,105090.0,0.0002]
[1750733496645,7.02593466,105100.0,105090.0,0.0002]
[1750733497010,7.02592815,105100.0,105090.0,0.0002]
[1750733497822,7.02291215,105100.0,105090.0,0.0002]
[1750733498242,7.02291215,105100.0,105070.0,0.0317]
[1750733498243,0.40663595,105080.0,105070.0,0.0317]
[1750733498550,1.25578348,105080.0,105070.0,0.0317]
[1750733499061,1.29391931,105080.0,105070.0,0.0317]
[1750733499258,1.28440348,105080.0,105070.0,0.0317]
[1750733499508,1.28440348,105080.0,105070.0,0.0337]
[1750733499889,1.28540348,105080.0,105070.0,0.0367]
[1750733500825,1.27874705,105080.0,105070.0,0.0367]
[1750733503330,1.25012705,105080.0,105070.0,0.0367]
[1750733503551,1.05044705,105080.0,105070.0,0.0367]
[1750733503771,1.25012705,105080.0,105070.0,0.0367]
[1750733507788,1.47884705,105080.0,105070.0,0.0367]
[1750733511205,1.50746705,105080.0,105070.0,0.0367]
[1750733511926,1.77753398,105080.0,105070.0,0.0052]
[1750733511928,5.65650361,105070.0,105060.0,0.0002]
[1750733512146,0.39712003,105060.0,105050.0,0.0318]
[1750733512430,1.08921389,105060.0,105050.0,0.0318]
[1750733512706,1.09873153,105060.0,105050.0,0.0318]
[1750733512959,1.13687444,105060.0,105050.0,0.0318]
[1750733513218,1.2323763,105060.0,105050.0,0.0318]
[1750733513442,1.46448626,105060.0,105050.0,0.03226254]
[1750733513668,6.9639653,105060.0,105050.0,0.00066254]
[1750733513917,6.98123627,105060.0,105050.0,0.00166254]
[1750733514136,6.93684964,105060.0,105050.0,0.00166254]
[1750733514355,6.74373066,105060.0,105050.0,0.00166254]
[1750733514808,6.71735104,105060.0,105050.0,0.00166254]
[1750733515301,6.74367296,105060.0,105050.0,0.00066254]
[1750733515520,6.74381625,105060.0,105050.0,0.00266254]
[1750733516102,0.21446468,105040.0,105030.0,0.0002]
[1750733516326,1.44274104,105040.0,105030.0,0.0002]
[1750733516544,1.4743382,105040.0,105030.0,0.0002]
[1750733517443,1.50221433,105040.0,105030.0,0.0002]
[1750733517901,1.50221433,105040.0,105030.0,0.0012]
[1750733518323,1.50961063,105040.0,105030.0,0.0012]
[1750733518530,1.58299199,105040.0,105030.0,0.0012]
[1750733518742,6.58221695,105040.0,105030.0,0.0012]
[1750733518948,6.58321695,105040.0,105030.0,0.0032]
[1750733519171,6.59277686,105040.0,105030.0,0.0032]
[1750733519375,6.59276525,105040.0,105030.0,0.0032]
[1750733519620,6.4023616,105040.0,105030.0,0.0032]
[1750733519823,6.41088114,105040.0,105030.0,0.0012]
[1750733520034,6.42931356,105040.0,105030.0,0.0022]
[1750733520669,6.38178032,105040.0,105030.0,0.0012]
[1750733520889,6.39128865,105040.0,105030.0,0.0012]
[1750733521114,6.3722492,105040.0,105030.0,0.0012]
[1750733521326,1.32928867,105040.0,105030.0,0.0012]
[1750733521784,1.12960867,105040.0,105030.0,0.0012]
[1750733522007,1.33880849,105040.0,105030.0,0.0012]
[1750733522272,1.33880839,105040.0,105030.0,0.0012]
[1750733522696,1.17218785,105040.0,105030.0,0.0012]
[1750733522917,1.38138757,105040.0,105030.0,0.0012]
[1750733523562,1.04553575,105040.0,105030.0,0.0012]
[1750733523836,0.8313149,105040.0,105030.0,0.0318]
[1750733524068,0.8026809,105040.0,105030.0,0.0318]
[1750733524288,0.8482179,105040.0,105030.0,0.0318]
[1750733524509,1.02075875,105040.0,105030.0,0.0318]
[1750733525183,1.0062179,105040.0,105030.0,0.0318]
[1750733525412,1.02075875,105040.0,105030.0,0.0318]
[1750733527232,1.02095875,105040.0,105030.0,0.0318]
[1750733527651,0.82123875,105040.0,105030.0,0.0318]
[1750733528100,1.02095875,105040.0,105030.0,0.0318]
[1750733528316,0.99308262,105040.0,105030.0,0.0318]
[1750733529617,0.49746084,105030.0,105020.0,0.0002]
[1750733529858,1.64936615,105030.0,105020.0,0.0002]
[1750733530066,1.70000484,105030.0,105020.0,0.0002]
[1750733530274,1.8956522,105030.0,105020.0,0.0002]
[1750733531166,1.8986522,105030.0,105020.0,0.0012]
[1750733532508,1.8986497,105030.0,105020.0,0.0012]
[1750733532937,1.87438626,105030.0,105020.0,0.0012]
[1750733533148,1.89864302,105030.0,105020.0,0.0012]
[1750733535333,1.92693935,105030.0,105020.0,0.0012]
[1750733535745,1.95557435,105030.0,105020.0,0.0012]
[1750733535959,1.95557581,105030.0,105020.0,0.0012]
[1750733536424,1.95577581,105030.0,105020.0,0.0012]
[1750733536646,1.95877581,105030.0,105020.0,0.0012]
[1750733538142,2.05424576,105030.0,105020.0,0.0012]
[1750733538370,2.0919623,105030.0,105020.0,0.0012]
[1750733538574,1.99645647,105030.0,105020.0,0.0012]
[1750733538780,1.96819602,105030.0,105020.0,0.0012]
[1750733539217,2.02487899,105030.0,105020.0,0.0012]
[1750733540009,2.03371776,105030.0,105020.0,0.0012]
[1750733540178,1.99600568,105030.0,105020.0,0.0012]
[1750733540379,2.09147563,105030.0,105020.0,0.0012]
[1750733540579,1.99600568,105030.0,105020.0,0.0012]
[1750733541353,1.99600352,105030.0,105020.0,0.0012]
[1750733541593,1.99603399,105030.0,105020.0,0.0012]
[1750733543512,1.85306164,105030.0,105020.0,0.0012]
[1750733543712,2.02302448,105030.0,105020.0,0.0012]
[1750733544283,2.02304623,105030.0,105020.0,0.0012]
[1750733545703,2.02304623,105030.0,105020.0,0.0335]
[1750733545704,0.59426943,105030.0,105020.0,0.0335]
[1750733545919,0.80453318,105030.0,105020.0,0.0335]
[1750733546135,0.9499752,105030.0,105020.0,0.0335]
[1750733546784,1.2899752,105030.0,105020.0,0.0335]
[1750733546998,1.2899768,105030.0,105020.0,0.0335]
[1750733547217,1.28998106,105030.0,105020.0,0.0335]
[1750733547813,1.08838106,105030.0,105020.0,0.0335]
[1750733548021,1.28998115,105030.0,105020.0,0.0335]
[1750733548676,1.08838115,105030.0,105020.0,0.0335]
[1750733548892,1.28994115,105030.0,105020.0,0.0335]
[1750733549332,0.83893376,105030.0,105020.0,0.0335]
[1750733549550,1.28322916,105030.0,105020.0,0.0335]
[1750733550687,0.99801376,105030.0,105020.0,0.0335]
[1750733550894,1.28322916,105030.0,105020.0,0.0335]
[1750733551311,1.08174916,105030.0,105020.0,0.0335]
[1750733551571,1.28330916,105030.0,105020.0,0.0335]
[1750733552128,1.25467416,105030.0,105020.0,0.0335]
[1750733552755,1.05311416,105030.0,105020.0,0.0335]
[1750733552874,1.25463416,105030.0,105020.0,0.0335]
[1750733553329,1.21431729,105030.0,105020.0,0.0335]
[1750733556732,1.01283729,105030.0,105020.0,0.0335]
[1750733556939,1.21427729,105030.0,105020.0,0.0335]
[1750733558583,1.01283729,105030.0,105020.0,0.0335]
[1750733558783,1.21427729,105030.0,105020.0,0.0335]
[1750733559206,1.49949269,105030.0,105020.0,0.0335]
[1750733559404,1.49949269,105030.0,105020.0,0.0177]
[1750733559613,1.49949269,105030.0,105020.0,0.0012]
[1750733560648,1.57144947,105030.0,105020.0,0.0012]
[1750733560854,1.57144938,105030.0,105020.0,0.0012]
[1750733561461,1.53985222,105030.0,105020.0,0.0012]
[1750733561870,1.53984996,105030.0,105020.0,0.0012]
[1750733563754,1.52215139,105030.0,105020.0,0.0012]
[1750733565040,1.55415139,105030.0,105020.0,0.0012]
[1750733565459,1.52215139,105030.0,105020.0,0.0012]
[1750733565667,1.23693599,105030.0,105020.0,0.0164]
[1750733566283,1.21427729,105030.0,105020.0,0.0164]
[1750733567136,1.21427729,105030.0,105020.0,0.0012]
[1750733568196,1.21427729,105030.0,105020.0,0.0333]
[1750733569455,1.23694842,105030.0,105020.0,0.0333]
[1750733569655,1.52216382,105030.0,105020.0,0.0012]
[1750733569908,1.23694842,105030.0,105020.0,0.0012]
[1750733571678,1.52216382,105030.0,105020.0,0.0012]
[1750733573272,1.23694842,105030.0,105020.0,0.0012]
[1750733574114,1.23696947,105030.0,105020.0,0.0012]
[1750733575380,1.25470733,105030.0,105020.0,0.0012]
[1750733576010,1.25470779,105030.0,105020.0,0.0012]
[1750733576502,1.25470781,105030.0,105020.0,0.0012]
[1750733577471,0.96949241,105030.0,105020.0,0.0012]
[1750733577673,1.25470781,105030.0,105020.0,0.0012]
[1750733579728,1.25470832,105030.0,105020.0,0.0012]
[1750733581116,1.25470563,105030.0,105020.0,0.0012]
[1750733581331,1.55642103,105030.0,105020.0,0.0012]
[1750733581539,1.60125303,105030.0,105020.0,0.0012]
[1750733581949,1.61077339,105030.0,105020.0,0.0012]
[1750733582358,1.60125303,105030.0,105020.0,0.0012]
[1750733583577,1.56855303,105030.0,105020.0,0.0012]
[1750733583797,1.28185763,105030.0,105020.0,0.0012]
[1750733584841,1.26412147,105030.0,105020.0,0.0012]
[1750733585074,1.28186165,105030.0,105020.0,0.0012]
[1750733587249,1.27077918,105030.0,105020.0,0.0012]
[1750733587448,1.28853359,105030.0,105020.0,0.0012]
[1750733587685,1.57374899,105030.0,105020.0,0.0012]
[1750733588353,1.57374892,105030.0,105020.0,0.0012]
[1750733589006,1.00331812,105030.0,105020.0,0.0012]
[1750733589217,1.57374892,105030.0,105020.0,0.0012]
[1750733589704,1.28853352,105030.0,105020.0,0.0012]
[1750733589916,1.288534,105030.0,105020.0,0.0012]
[1750733591864,1.088574,105030.0,105020.0,0.0012]
[1750733592077,1.288534,105030.0,105020.0,0.0012]
[1750733593151,1.28854105,105030.0,105020.0,0.0012]
[1750733593356,1.00332565,105030.0,105020.0,0.0012]
[1750733593568,1.28854105,105030.0,105020.0,0.0012]
[1750733595598,1.30504105,105030.0,105020.0,0.0012]
[1750733596064,1.59977681,105030.0,105020.0,0.0012]
[1750733596250,1.59977672,105030.0,105020.0,0.0012]
[1750733597175,1.59025645,105030.0,105020.0,0.0012]
[1750733598823,1.61557681,105030.0,105020.0,0.0012]
[1750733599045,1.62509726,105030.0,105020.0,0.0012]
[1750733599500,1.88500268,105030.0,105020.0,0.0012]
[1750733599722,1.92208769,105030.0,105020.0,0.0012]
[1750733599945,1.92208355,105030.0,105020.0,0.0012]
[1750733600473,1.92208355,105030.0,104980.0,0.032]
[1750733600474,0.35454085,104990.0,104980.0,0.032]
[1750733600695,0.88225543,104990.0,104980.0,0.032]
[1750733600912,0.97775729,104990.0,104980.0,0.032]
[1750733602095,0.97875729,104990.0,104980.0,0.03913202]
[1750733602733,0.97975729,104990.0,104980.0,0.04313202]
[1750733606567,0.69454189,104990.0,104980.0,0.04313202]
[1750733606793,0.97975729,104990.0,104980.0,0.04313202]
[1750733607638,0.69454189,104990.0,104980.0,0.04313202]
[1750733609353,0.92342189,104990.0,104980.0,0.04313202]
[1750733609976,0.92334189,104990.0,104980.0,0.04313202]
[1750733613158,0.72350189,104990.0,104980.0,0.04313202]
[1750733613393,0.92334189,104990.0,104980.0,0.04313202]
[1750733613611,0.92234189,104990.0,104980.0,0.03913202]
[1750733613828,0.92134189,104990.0,104980.0,0.03213202]
[1750733614037,0.92234189,104990.0,104980.0,0.03413202]
[1750733614877,0.92234189,104990.0,104980.0,0.03513202]
[1750733617846,0.72250189,104990.0,104980.0,0.03513202]
[1750733618078,0.92234189,104990.0,104980.0,0.03513202]
[1750733618856,0.72250189,104990.0,104980.0,0.03513202]
[1750733619057,0.82684003,104990.0,104980.0,0.03513202]
[1750733619324,0.62700003,104990.0,104980.0,0.32034742]
[1750733619532,0.82684003,104990.0,104980.0,0.32034742]
[1750733620031,0.82684003,104990.0,104980.0,0.03513202]
[1750733622023,0.56988,104990.0,104980.0,0.51085989]
[1750733622239,0.42972,104990.0,104980.0,0.52038533]
[1750733622451,0.42972,104990.0,104980.0,0.52991068]
[1750733622661,0.42972,104990.0,104980.0,0.53943594]
[1750733622880,0.42972,104990.0,104980.0,0.54896111]
[1750733623094,0.42972,104990.0,104980.0,0.55848618]
[1750733623298,0.42972,104990.0,104980.0,0.54896111]
[1750733623571,0.42972,104990.0,104980.0,0.55848609]
[1750733623782,0.42972,104990.0,104980.0,0.55848618]
[1750733623997,0.42972,104990.0,104980.0,0.24469528]
[1750733624203,0.42972,104990.0,104980.0,0.52991068]
[1750733624635,0.22988,104990.0,104980.0,0.53943594]
[1750733624819,0.42968,104990.0,104980.0,0.54896092]
[1750733625286,0.42968,104990.0,104980.0,0.54896101]
[1750733625930,0.42968,104990.0,104980.0,0.54896111]
[1750733626170,0.42968,104990.0,104980.0,0.26374571]
[1750733626380,0.42968,104990.0,104980.0,0.53943594]
[1750733626588,0.42968,104990.0,104980.0,0.52038533]
[1750733627135,0.42968,104990.0,104980.0,0.03513202]
[1750733627350,0.42968,104990.0,104980.0,0.33939839]
[1750733628416,0.42968,104990.0,104980.0,0.04465755]
[1750733628643,0.42968,104990.0,104980.0,0.05418317]
[1750733628885,0.42968,104990.0,104980.0,0.04465764]
[1750733629116,0.42968,104990.0,104980.0,0.03513202]
[1750733631027,0.42968,104990.0,104980.0,0.04465764]
[1750733631459,0.42968,104990.0,104980.0,0.05418317]
[1750733631666,0.42968,104990.0,104980.0,0.04465764]
[1750733632733,0.42968,104990.0,104980.0,0.03513202]
[1750733633595,0.47225918,104990.0,104980.0,0.03513202]
[1750733638060,0.24337918,104990.0,104980.0,0.03513202]
[1750733639243,0.59792003,104990.0,104980.0,0.00313202]
[1750733639464,0.89953543,104990.0,104980.0,0.00313202]
[1750733639707,0.63012003,104990.0,104980.0,0.00313202]
[1750733641430,0.91533543,104990.0,104980.0,0.00313202]
[1750733642074,0.63012003,104990.0,104980.0,0.00313202]
[1750733647628,0.91533543,104990.0,104980.0,0.00313202]
[1750733650031,0.63012003,104990.0,104980.0,0.00313202]
[1750733650239,0.61432003,104990.0,104980.0,0.00313202]
[1750733650440,0.59792003,104990.0,104980.0,0.00313202]
[1750733651910,0.61342003,104990.0,104980.0,0.00313202]
[1750733653534,0.59792003,104990.0,104980.0,0.00313202]
[1750733657190,0.59792003,104990.0,104980.0,0.03523202]
[1750733657803,0.59792003,104990.0,104980.0,0.01893202]
[1750733657987,0.59792003,104990.0,104980.0,0.00313202]
[1750733658644,0.86546489,104990.0,104980.0,0.00313202]
[1750733662359,0.59792003,104990.0,104980.0,0.00313202]
[1750733664252,0.59792003,104990.0,104980.0,0.01813202]
[1750733665330,0.59792003,104990.0,104980.0,0.00313202]
[1750733666848,0.59768003,104990.0,104980.0,0.03473202]
[1750733668806,0.59768003,104990.0,104980.0,0.00313202]
[1750733669019,0.59768003,104990.0,104980.0,0.01873202]
[1750733669227,0.59768003,104990.0,104980.0,0.03503202]
[1750733669413,0.59768003,104990.0,104980.0,0.01873202]
[1750733670077,0.59768003,104990.0,104980.0,0.00313202]
[1750733673576,0.88307825,104990.0,104980.0,0.00313202]
[1750733675288,0.91537825,104990.0,104980.0,0.00313202]
[1750733675770,1.01088011,104990.0,104980.0,0.00313202]
[1750733676189,1.03366963,104990.0,104980.0,0.00313202]
[1750733677038,0.74827141,104990.0,104980.0,0.00313202]
[1750733677467,0.72548189,104990.0,104980.0,0.00313202]
[1750733677682,1.01088011,104990.0,104980.0,0.00313202]
[1750733678116,0.72548189,104990.0,104980.0,0.00313202]
[1750733678322,1.01088011,104990.0,104980.0,0.00313202]
[1750733680512,0.72548189,104990.0,104980.0,0.00313202]
[1750733680722,1.01088011,104990.0,104980.0,0.00313202]
[1750733683878,0.72548189,104990.0,104980.0,0.00313202]
[1750733684059,1.01088011,104990.0,104980.0,0.00313202]
[1750733684260,0.99308301,104990.0,104980.0,0.00313202]
[1750733686535,0.72548189,104990.0,104980.0,0.00313202]
[1750733686667,0.99308301,104990.0,104980.0,0.00313202]
[1750733694780,1.28346952,104990.0,104980.0,0.00313202]
[1750733694999,1.0158684,104990.0,104980.0,0.00313202]